lending/lending_fUSD_20260206
["ID","MTS","AMOUNT","RATE_DAILY","PERIOD"]
[404662042,1770395519085,341.74,9.079e-05,2]
[404662043,1770395522007,300.0,9.369e-05,2]
[404662045,1770395528713,500.0,0.00044114,120]
[404662046,1770395529327,500.0,0.00044114,120]
[404662047,1770395529938,500.0,0.00044114,120]
[404662048,1770395530545,500.0,0.00044114,120]
[404662051,1770395533978,200.0,0.00044114,120]
[404662055,1770395537044,200.0,0.00044114,120]
[404662056,1770395537695,200.0,0.00044114,120]
[404662057,1770395537769,151.0,9.367e-05,2]
[404662058,1770395538432,200.0,0.00044114,120]
[404662059,1770395581337,300.0,9.369e-05,2]
[404662060,1770395582168,150.0,9.369e-05,2]
[404662061,1770395583233,300.0,9.369e-05,2]
[404662064,1770395600431,151.0,9.367e-05,2]
[404662065,1770395608007,748.81,9.004e-05,2]
[404662066,1770395695519,-10000.0,9.37e-05,2]
[404662067,1770395697560,-10000.0,9.37e-05,2]
[404662068,1770395697853,-10000.0,9.37e-05,2]
[404662069,1770395698310,-10000.0,9.37e-05,2]
[404662070,1770395698632,-10000.0,9.37e-05,2]
[404662071,1770395699123,-10000.0,9.37e-05,2]
[404662072,1770395699415,-10000.0,9.37e-05,2]
[404662073,1770395699793,-10000.0,9.37e-05,2]
[404662074,1770395700214,-10000.0,9.37e-05,2]
[404662075,1770395700533,-10000.0,9.37e-05,2]
[404662076,1770395700887,-10000.0,9.37e-05,2]
[404662077,1770395701238,1200.0,9.369e-05,2]
[404662078,1770395701271,-10000.0,9.37e-05,2]
[404662079,1770395701628,-10000.0,9.37e-05,2]
[404662080,1770395701957,-10000.0,9.37e-05,2]
[404662081,1770395702341,-10000.0,9.37e-05,2]
[404662082,1770395702723,-10000.0,9.37e-05,2]
[404662083,1770395703107,-10000.0,9.37e-05,2]
[404662084,1770395703615,-10000.0,9.37e-05,2]
[404662085,1770395704001,-10000.0,9.37e-05,2]
[404662086,1770395704341,-10000.0,9.37e-05,2]
[404662088,1770395704643,-10000.0,9.37e-05,2]
[404662089,1770395705076,-10000.0,9.37e-05,2]
[404662090,1770395705413,-10000.0,9.37e-05,2]
[404662091,1770395705883,-10000.0,9.37e-05,2]
[404662092,1770395706187,-10000.0,9.37e-05,2]
[404662093,1770395706539,-10000.0,9.37e-05,2]
[404662094,1770395707026,-10000.0,9.37e-05,2]
[404662095,1770395707412,-10000.0,9.37e-05,2]
[404662096,1770395707752,-10000.0,9.37e-05,2]
[404662097,1770395708325,-10000.0,9.37e-05,2]
[404662098,1770395710525,233.05408281,0.00044114,120]
[404662099,1770395711581,500.0,0.00044114,120]
[404662100,1770395712307,500.0,0.00044114,120]
[404662101,1770395712947,500.0,0.00044114,120]
[404662102,1770395713063,1928.84,0.00044114,30]
[404662103,1770395713259,1000.0,0.00044114,120]
[404662104,1770395713334,322.6107,0.00044114,120]
[404662105,1770395713676,231.02017373,0.00044114,120]
[404662106,1770395713959,1000.0,0.00044114,120]
[404662107,1770395714595,1000.0,0.00044114,120]
[404662108,1770395714713,752.73736536,0.00044114,120]
[404662109,1770395715232,1000.0,0.00044114,120]
[404662110,1770395715860,1000.0,0.00044114,120]
[404662111,1770395716213,638.12307168,0.00044114,120]
[404662112,1770395716896,597.39374308,0.00044114,120]
[404662113,1770395717117,500.0,0.00044114,120]
[404662114,1770395717747,500.0,0.00044114,120]
[404662115,1770395720245,151.0,9.367e-05,2]
[404662116,1770395720699,151.0,9.367e-05,2]
[404662117,1770395720785,520.0,0.00044114,120]
[404662118,1770395720930,500.0,0.00044114,120]
[404662119,1770395721113,151.0,9.367e-05,2]
[404662120,1770395721536,500.0,0.00044114,120]
[404662121,1770395721988,-10000.0,9.37e-05,2]
[404662122,1770395722288,500.0,0.00044114,120]
[404662123,1770395722563,-10000.0,9.37e-05,2]
[404662124,1770395722900,500.0,0.00044114,120]
[404662125,1770395724047,-10000.0,9.37e-05,2]
[404662126,1770395725044,-10000.0,9.37e-05,2]
[404662127,1770395725799,-10000.0,9.37e-05,2]
[404662128,1770395726258,277.35679052,0.00044114,30]
[404662129,1770395726616,-10000.0,9.37e-05,2]
[404662130,1770395727683,528.18374135,9.369e-05,2]
[404662131,1770395728627,304.51318463,9.369e-05,2]
[404662132,1770395729329,500.0,9.342e-05,2]
[404662133,1770395729845,150.0,9.342e-05,2]
[404662134,1770395730805,209.40437684,0.00044114,120]
[404662135,1770395734365,-5929.0,9.37e-05,2]
[404662136,1770395737529,3992.56342833,0.00044114,30]
[404662137,1770395738997,-293.47590332,9.37e-05,2]
[404662138,1770395739118,-521.85876466,9.37e-05,2]
[404662139,1770395739218,-319.88219641,9.37e-05,2]
[404662140,1770395739325,-381.31399237,9.37e-05,2]
[404662141,1770395739418,-2087.96324622,9.37e-05,2]
[404662143,1770395757940,75.34395102,9.118e-05,2]
[404662144,1770395757969,332.65604898,9.118e-05,2]
[404662145,1770395758130,399.82728308,9.157e-05,2]
[404662146,1770395759954,9267.52666794,9.27e-05,2]
[404662147,1770395759998,10000.01,9.27e-05,2]
[404662148,1770395760031,10000.01,9.27e-05,2]
[404662149,1770395760067,10000.01,9.27e-05,2]
[404662150,1770395760103,10000.01,9.27e-05,2]
[404662151,1770395760135,10000.01,9.27e-05,2]
[404662152,1770395760167,10000.01,9.27e-05,2]
[404662153,1770395760199,10000.01,9.27e-05,2]
[404662154,1770395760232,10000.01,9.27e-05,2]
[404662155,1770395762797,-150.0,9.269e-05,2]
[404662156,1770395763636,738.0,9.233e-05,2]
[404662157,1770395763921,3198.0628683,9.17e-05,2]
[404662158,1770395765880,500.0,0.00044114,120]
[404662159,1770395768482,1030.0,0.00044114,120]
[404662160,1770395769103,1068.11,0.00044114,120]
[404662161,1770395769791,1068.11,0.00044114,120]
[404662162,1770395771077,151.0,0.00044114,120]
[404662163,1770395771678,156.587,0.00044114,120]
[404662164,1770395772292,162.380719,0.00044114,120]
[404662165,1770395772888,162.380719,0.00044114,120]
[404662166,1770395773968,210.2674459,0.00044114,120]
[404662167,1770395776241,500.0,0.00044114,120]
[404662168,1770395776866,500.0,0.00044114,120]
[404662169,1770395779899,200.0,0.00044114,30]
[404662170,1770395780564,207.4,0.00044114,30]
[404662171,1770395781193,215.0738,0.00044114,30]
[404662172,1770395781881,215.0738,0.00044114,30]
[404662173,1770395783508,620.0,0.00044114,120]
[404662174,1770395784131,642.94,0.00044114,120]
[404662175,1770395785089,666.72878,0.00044114,120]
[404662176,1770395788620,151.0,0.00044114,120]
[404662177,1770395789205,156.587,0.00044114,120]
[404662178,1770395789909,156.587,0.00044114,120]
[404662179,1770395791073,151.0,0.00044114,120]
[404662180,1770395791744,156.587,0.00044114,120]
[404662181,1770395792352,162.380719,0.00044114,120]
[404662182,1770395792953,162.380719,0.00044114,120]
[404662183,1770395796495,369.72861894,9.269e-05,2]
[404662184,1770395796540,202.12484706,9.269e-05,2]
[404662185,1770395799207,220.19711384,9.269e-05,2]
[404662186,1770395815487,50000.0,0.00044114,52]
[404662187,1770395821549,300.0,9.269e-05,2]
[404662188,1770395823544,150.0,9.269e-05,2]
[404662189,1770395825541,334.5472959,0.00044114,120]
[404662190,1770395830607,500.0,0.00044114,120]
[404662191,1770395831705,500.0,0.00044114,120]
[404662192,1770395832359,500.0,0.00044114,120]
[404662193,1770395833597,293.28218684,0.00044114,120]
[404662194,1770395835692,151.0,0.00044114,120]
[404662195,1770395836484,1030.0,0.00044114,120]
[404662196,1770395837099,1030.0,0.00044114,120]
[404662197,1770395845724,470.02214328,0.00044114,120]
[404662198,1770395845793,2841.13,0.00044114,30]
[404662199,1770395881655,300.0,9.269e-05,2]
[404662202,1770395908302,504.0,9.269e-05,2]
[404662203,1770395910022,232.39,9.2e-05,2]
[404662204,1770395912965,5888.0,0.00035616,120]
[404662205,1770395919475,5888.0,0.00035616,120]
[404662206,1770395923735,5888.0,0.00035616,120]
[404662207,1770395927035,5888.0,0.00035616,120]
[404662208,1770395930082,5888.0,0.00035616,120]
[404662209,1770395933377,5888.0,0.00035616,120]
[404662210,1770395936723,5888.0,0.00035616,120]
[404662211,1770395940778,5888.0,0.00035616,120]
[404662212,1770395941484,300.0,9.269e-05,2]
[404662213,1770395942664,300.0,9.269e-05,2]
[404662214,1770395942698,150.0,9.269e-05,2]
[404662215,1770395944175,5888.0,0.00035616,120]
[404662216,1770395946261,220.0,0.00044146,120]
[404662217,1770395946868,220.0,0.00044146,120]
[404662218,1770395947452,220.0,0.00044146,120]
[404662219,1770395947496,5888.0,0.00035616,120]
[404662220,1770395948052,220.0,0.00044146,120]
[404662221,1770395948646,220.0,0.00044146,120]
[404662222,1770395948772,557.4038651,0.00044146,120]
[404662223,1770395949270,500.0,0.00044146,120]
[404662224,1770395949316,220.0,0.00044146,120]
[404662225,1770395949762,500.0,0.00044146,120]
[404662226,1770395949989,220.0,0.00044146,120]
[404662227,1770395950390,500.0,0.00044146,120]
[404662228,1770395950607,220.0,0.00044146,120]
[404662229,1770395950640,5888.0,0.00035616,120]
[404662230,1770395951005,500.0,0.00044146,120]
[404662231,1770395951210,220.0,0.00044146,120]
[404662232,1770395951902,220.0,0.00044146,120]
[404662233,1770395953888,1732.0,0.00035616,120]
[404662234,1770395958005,620.0,0.00044146,120]
[404662235,1770395958191,160.0,0.00044146,120]
[404662236,1770395958392,250.0,0.00044146,120]
[404662237,1770395958620,1000.0,0.00044146,120]
[404662238,1770395958792,160.0,0.00044146,120]
[404662239,1770395959024,250.0,0.00044146,120]
[404662240,1770395959125,1000.0,0.00044146,120]
[404662241,1770395959490,160.0,0.00044146,120]
[404662242,1770395959736,1000.0,0.00044146,120]
[404662243,1770395959959,250.0,0.00044146,120]
[404662244,1770395960190,160.0,0.00044146,120]
[404662245,1770395960369,1000.0,0.00044146,120]
[404662246,1770395960564,250.0,0.00044146,120]
[404662247,1770395960881,160.0,0.00044146,120]
[404662248,1770395960987,1000.0,0.00044146,120]
[404662249,1770395961170,250.0,0.00044146,120]
[404662250,1770395961611,1000.0,0.00044146,120]
[404662251,1770395961877,250.0,0.00044146,120]
[404662252,1770395962244,1000.0,0.00044146,120]
[404662253,1770395962497,250.0,0.00044146,120]
[404662254,1770395962850,1000.0,0.00044146,120]
[404662255,1770395963128,250.0,0.00044146,120]
[404662256,1770395963543,1000.0,0.00044146,120]
[404662257,1770395963766,250.0,0.00044146,120]
[404662258,1770395964166,1000.0,0.00044146,120]
[404662259,1770395964493,500.0,9.269e-05,2]
[404662260,1770395964797,500.0,9.269e-05,2]
[404662261,1770395964848,1000.0,0.00044146,120]
[404662262,1770395965206,500.0,9.269e-05,2]
[404662263,1770395965486,1000.0,0.00044146,120]
[404662264,1770395965583,500.0,9.269e-05,2]
[404662265,1770395965985,500.0,9.269e-05,2]
[404662266,1770395966114,1000.0,0.00044146,120]
[404662267,1770395966349,235.50655186,9.269e-05,2]
[404662268,1770395966374,264.49344814,9.269e-05,2]
[404662269,1770395966670,500.0,9.269e-05,2]
[404662270,1770395966719,1000.0,0.00044146,120]
[404662271,1770395967016,500.0,9.269e-05,2]
[404662272,1770395967187,3322.0,0.00044146,120]
[404662273,1770395967330,500.0,9.269e-05,2]
[404662274,1770395967374,1000.0,0.00044146,120]
[404662275,1770395967761,500.0,9.269e-05,2]
[404662276,1770395967810,3322.0,0.00044146,120]
[404662277,1770395967977,1000.0,0.00044146,120]
[404662278,1770395968101,500.0,9.269e-05,2]
[404662279,1770395968458,500.0,9.269e-05,2]
[404662280,1770395971729,252.13953714,0.00044146,120]
[404662281,1770395973798,500.0,9.269e-05,2]
[404662282,1770395973842,250.0,0.00044146,120]
[404662283,1770395974423,250.0,0.00044146,120]
[404662284,1770395974689,500.0,9.269e-05,2]
[404662285,1770395974955,150.0,9.242e-05,2]
[404662286,1770395975055,250.0,0.00044146,120]
[404662287,1770395975178,151.0,0.00044146,120]
[404662288,1770395975936,250.0,0.00044146,120]
[404662289,1770395976008,156.587,0.00044146,120]
[404662290,1770395976059,150.0,9.242e-05,2]
[404662291,1770395976391,250.0,0.00044146,120]
[404662292,1770395976588,162.380719,0.00044146,120]
[404662293,1770395977196,168.3888056,0.00044146,120]
[404662294,1770395977562,250.0,0.00044146,120]
[404662295,1770395977799,174.61919141,0.00044146,120]
[404662296,1770395978230,250.0,0.00044146,120]
[404662297,1770395978454,181.08010149,0.00044146,120]
[404662298,1770395978920,250.0,0.00044146,120]
[404662299,1770395979142,187.78006525,0.00044146,120]
[404662300,1770395979538,250.0,0.00044146,120]
[404662301,1770395979767,194.72792766,0.00044146,120]
[404662302,1770395980488,194.72792766,0.00044146,120]
[404662303,1770395983038,1055.59924776,0.00044146,120]
[404662305,1770396001484,300.0,9.269e-05,2]
[404662306,1770396001521,300.0,9.269e-05,2]
[404662307,1770396001829,300.0,9.269e-05,2]
[404662308,1770396004786,1200.0,9.269e-05,2]
[404662311,1770396010419,160.0,0.00044146,120]
[404662312,1770396010896,151.0,0.00044146,120]
[404662313,1770396011223,160.0,0.00044146,120]
[404662314,1770396011605,151.0,0.00044146,120]
[404662315,1770396011760,160.0,0.00044146,120]
[404662316,1770396012214,151.0,0.00044146,120]
[404662317,1770396012390,160.0,0.00044146,120]
[404662318,1770396012842,151.0,0.00044146,120]
[404662319,1770396013467,151.0,0.00044146,120]
[404662320,1770396013626,250.0,0.00044146,120]
[404662321,1770396014098,151.0,0.00044146,120]
[404662322,1770396014491,250.0,0.00044146,120]
[404662323,1770396014721,151.0,0.00044146,120]
[404662324,1770396014968,250.0,0.00044146,120]
[404662325,1770396015338,151.0,0.00044146,120]
[404662326,1770396015668,250.0,0.00044146,120]
[404662327,1770396015717,300.0,0.00044146,120]
[404662328,1770396015951,151.0,0.00044146,120]
[404662329,1770396016580,151.0,0.00044146,120]
[404662330,1770396017214,151.0,0.00044146,120]
[404662331,1770396017862,151.0,0.00044146,120]
[404662332,1770396018569,151.0,0.00044146,120]
[404662333,1770396019123,250.0,0.00044146,120]
[404662334,1770396019192,151.0,0.00044146,120]
[404662335,1770396019794,250.0,0.00044146,120]
[404662336,1770396019836,151.0,0.00044146,120]
[404662337,1770396019969,151.0,0.00044146,120]
[404662338,1770396020585,156.587,0.00044146,120]
[404662339,1770396021211,162.380719,0.00044146,120]
[404662340,1770396022952,250.0,0.00044146,120]
[404662341,1770396024177,151.0,0.00044146,120]
[404662342,1770396024839,151.0,0.00044146,120]
[404662343,1770396026040,250.0,0.00044146,120]
[404662344,1770396026665,250.0,0.00044146,120]
[404662345,1770396027357,250.0,0.00044146,120]
[404662346,1770396027414,168.3888056,0.00044146,120]
[404662347,1770396028079,250.0,0.00044146,120]
[404662348,1770396028888,250.0,0.00044146,120]
[404662349,1770396029514,174.61919141,0.00044146,120]
[404662350,1770396029598,250.0,0.00044146,120]
[404662351,1770396030217,181.08010149,0.00044146,120]
[404662352,1770396030887,187.78006525,0.00044146,120]
[404662353,1770396031550,194.72792766,0.00044146,120]
[404662355,1770396032120,194.72792766,0.00044146,120]
[404662356,1770396035523,150.0,0.00011233,120]
[404662359,1770396061470,300.0,9.269e-05,2]
[404662361,1770396065362,1000.0,0.00044146,120]
[404662362,1770396066040,1000.0,0.00044146,120]
[404662363,1770396066245,3035.51655186,9.26e-05,2]
[404662364,1770396066270,10000.01,9.26e-05,2]
[404662365,1770396066296,10000.01,9.26e-05,2]
[404662366,1770396066323,10000.01,9.26e-05,2]
[404662367,1770396066352,10000.01,9.26e-05,2]
[404662368,1770396066377,4533.67650623,9.26e-05,2]
[404662369,1770396077970,151.0,0.00044146,120]
[404662370,1770396078663,151.0,0.00044146,120]
[404662371,1770396079035,500.0,0.00044146,120]
[404662373,1770396079297,151.0,0.00044146,120]
[404662374,1770396079669,500.0,0.00044146,120]
[404662375,1770396079990,151.0,0.00044146,120]
[404662376,1770396080284,500.0,0.00044146,120]
[404662377,1770396080637,151.0,0.00044146,120]
[404662378,1770396080926,500.0,0.00044146,120]
[404662379,1770396081374,151.0,0.00044146,120]
[404662380,1770396081550,500.0,0.00044146,120]
[404662381,1770396081751,5466.33349377,9.17e-05,2]
[404662382,1770396081791,10000.01,9.17e-05,2]
[404662383,1770396081826,10000.01,9.17e-05,2]
[404662384,1770396081859,10000.01,9.17e-05,2]
[404662385,1770396081890,10000.01,9.17e-05,2]
[404662386,1770396081921,10000.01,9.17e-05,2]
[404662387,1770396081956,10000.01,9.17e-05,2]
[404662388,1770396081988,10000.01,9.17e-05,2]
[404662389,1770396082019,10000.01,9.17e-05,2]
[404662390,1770396082058,10000.01,9.17e-05,2]
[404662391,1770396082123,151.0,0.00044146,120]
[404662392,1770396082175,500.0,0.00044146,120]
[404662393,1770396082626,151.0,0.00044146,120]
[404662394,1770396082791,500.0,0.00044146,120]
[404662395,1770396083430,500.0,0.00044146,120]
[404662396,1770396083794,151.0,0.00044146,120]
[404662397,1770396084059,500.0,0.00044146,120]
[404662398,1770396084453,151.0,0.00044146,120]
[404662399,1770396085144,151.0,0.00044146,120]
[404662400,1770396085772,151.0,0.00044146,120]
[404662401,1770396086472,151.0,0.00044146,120]
[404662402,1770396087176,151.0,0.00044146,120]
[404662403,1770396088335,151.0,0.00044146,120]
[404662404,1770396088976,151.0,0.00044146,120]
[404662405,1770396089583,151.0,0.00044146,120]
[404662406,1770396090420,151.0,0.00044146,120]
[404662407,1770396091128,151.0,0.00044146,120]
[404662408,1770396092266,151.0,0.00044146,120]
[404662409,1770396093124,3165.318,9.084e-05,2]
[404662410,1770396093224,258.848,9.084e-05,2]
[404662411,1770396094379,478.922499,9.124e-05,2]
[404662412,1770396096019,1000.0,0.00044146,120]
[404662413,1770396096655,1000.0,0.00044146,120]
[404662415,1770396122199,150.0,9.169e-05,2]
[404662416,1770396127741,300.0,9.169e-05,2]
[404662417,1770396132960,151.0,0.00044146,120]
[404662418,1770396133582,151.0,0.00044146,120]
[404662419,1770396134182,151.0,0.00044146,120]
[404662420,1770396134902,151.0,0.00044146,120]
[404662421,1770396135528,151.0,0.00044146,120]
[404662422,1770396136216,151.0,0.00044146,120]
[404662423,1770396136922,151.0,0.00044146,120]
[404662424,1770396138016,151.0,0.00044146,120]
[404662425,1770396138381,1142.77,8.532e-05,2]
[404662426,1770396142075,151.0,0.00044146,120]
[404662427,1770396146337,151.0,0.00044146,120]
[404662428,1770396183944,243.50216974,9.169e-05,2]
[404662429,1770396183979,196.07071092,9.169e-05,2]
[404662430,1770396184015,500.0,9.169e-05,2]
[404662431,1770396184271,515.68498621,9.169e-05,2]
[404662432,1770396186939,500.0,9.169e-05,2]
[404662433,1770396186986,500.0,9.169e-05,2]
[404662434,1770396187028,500.0,9.169e-05,2]
[404662435,1770396187072,500.0,9.169e-05,2]
[404662436,1770396187107,500.0,9.169e-05,2]
[404662437,1770396187147,500.0,9.169e-05,2]
[404662438,1770396187182,48.89363413,9.169e-05,2]
[404662439,1770396187211,451.10636587,9.169e-05,2]
[404662440,1770396187250,500.0,9.169e-05,2]
[404662441,1770396187291,500.0,9.169e-05,2]
[404662442,1770396187334,500.0,9.169e-05,2]
[404662443,1770396187381,500.0,9.169e-05,2]
[404662444,1770396187429,500.0,9.169e-05,2]
[404662445,1770396187470,500.0,9.169e-05,2]
[404662446,1770396187503,500.0,9.169e-05,2]
[404662447,1770396187692,500.0,9.169e-05,2]
[404662448,1770396187731,500.0,9.169e-05,2]
[404662449,1770396187765,500.0,9.169e-05,2]
[404662450,1770396187800,500.0,9.169e-05,2]
[404662451,1770396187834,500.0,9.169e-05,2]
[404662452,1770396188121,500.0,9.169e-05,2]
[404662453,1770396188167,500.0,9.169e-05,2]
[404662454,1770396188205,500.0,9.169e-05,2]
[404662455,1770396188243,500.0,9.169e-05,2]
[404662456,1770396188288,500.0,9.169e-05,2]
[404662457,1770396188324,500.0,9.169e-05,2]
[404662458,1770396188358,463.44555289,9.169e-05,2]
[404662459,1770396188400,85.45808124,9.169e-05,2]
[404662460,1770396188427,414.54191876,9.169e-05,2]
[404662461,1770396188477,500.0,9.169e-05,2]
[404662462,1770396189066,300.0,9.169e-05,2]
[404662463,1770396198712,-6663.97306327,9.17e-05,2]
[404662464,1770396198856,-10000.01,9.17e-05,2]
[404662465,1770396199372,-10000.01,9.17e-05,2]
[404662466,1770396199412,-10000.01,9.17e-05,2]
[404662467,1770396199479,-10000.01,9.17e-05,2]
[404662468,1770396199653,-10000.01,9.17e-05,2]
[404662469,1770396199784,-10000.01,9.17e-05,2]
[404662470,1770396200597,-10000.01,9.17e-05,2]
[404662471,1770396200776,-10000.01,9.17e-05,2]
[404662472,1770396200896,-10000.01,9.17e-05,2]
[404662473,1770396201033,-10000.01,9.17e-05,2]
[404662474,1770396201177,-10000.01,9.17e-05,2]
[404662475,1770396201298,-10000.01,9.17e-05,2]
[404662476,1770396201402,-10000.01,9.17e-05,2]
[404662477,1770396201493,-10000.01,9.17e-05,2]
[404662478,1770396201668,-10000.01,9.17e-05,2]
[404662479,1770396201850,-10000.01,9.17e-05,2]
[404662481,1770396229781,1101.0,8.559e-05,2]
[404662482,1770396229806,751.42,8.559e-05,2]
[404662483,1770396282730,275.11,8.433e-05,2]
[404662484,1770396283175,74.47,8.902e-05,2]
[404662485,1770396283201,200.64,8.902e-05,2]
[404662486,1770396327568,180.0,0.00035,120]
[404662487,1770396410142,-1683.71726127,8.955e-05,2]
[404662488,1770396412584,1000.0,8.308e-05,2]
[404662489,1770396457502,497.807628,8.932e-05,2]
[404662490,1770396474561,324.99,8.273e-05,2]
[404662491,1770396530251,310.11,0.00035616,120]
[404662492,1770396538958,4924.08,0.00044207,30]
[404662493,1770396596533,160.0,0.00035616,120]
[404662494,1770396600932,1000.0,0.00044207,30]
[404662524,1770396632129,-224.0,8.977e-05,2]
[404662525,1770396632140,-215.31811681,8.977e-05,2]
[404662526,1770396637020,-172.79670701,8.977e-05,2]
[404662527,1770396637031,-300.0,8.989e-05,2]
[404662528,1770396637040,-199.44,9e-05,2]
[404662529,1770396637050,-300.0,9.037e-05,2]
[404662530,1770396637060,-328.1212994,9.037e-05,2]
[404662531,1770396637070,-500.0,9.042e-05,2]
[404662532,1770396637079,-150.0,9.042e-05,2]
[404662533,1770396637089,-439.68490723,9.069e-05,2]
[404662534,1770396637099,-150.0,9.069e-05,2]
[404662535,1770396637108,-300.0,9.069e-05,2]
[404662536,1770396637117,-193.0,9.069e-05,2]
[404662537,1770396637127,-300.0,9.069e-05,2]
[404662538,1770396637137,-1200.0,9.069e-05,2]
[404662539,1770396637147,-439.68490721,9.07e-05,2]
[404662540,1770396637162,-500.0,9.07e-05,2]
[404662541,1770396637172,-500.0,9.07e-05,2]
[404662542,1770396637182,-500.0,9.07e-05,2]
[404662543,1770396637199,-500.0,9.07e-05,2]
[404662544,1770396637209,-500.0,9.07e-05,2]
[404662545,1770396637218,-500.0,9.07e-05,2]
[404662546,1770396637229,-500.0,9.07e-05,2]
[404662547,1770396637240,-347.68754819,9.07e-05,2]
[404662549,1770396637250,-2234306.04485167,9.07e-05,2]
[404662551,1770396637262,-75360.68853568,9.07e-05,2]
[404662552,1770396637273,-59151.42119523,9.07e-05,2]
[404662553,1770396637285,-57402.40572396,9.07e-05,2]
[404662554,1770396637297,-79015.62896983,9.07e-05,2]
[404662555,1770396637308,-3175.50000002,9.07e-05,2]
[404662556,1770396637319,-99089.05120471,9.07e-05,2]
[404662557,1770396637331,-7491.98886848,9.07e-05,2]
[404662558,1770396637345,-2011.64404357,9.07e-05,2]
[404662559,1770396637357,-10453.35595642,9.07e-05,2]
[404662560,1770396637368,-6510.86666118,9.07e-05,2]
[404662567,1770396638035,-4180.16975984,9.07e-05,2]
[404662568,1770396638047,-29557.75847636,9.07e-05,2]
[404662570,1770396638090,-2473.13499175,9.07e-05,2]
[404662571,1770396638103,-1547.95,9.07e-05,2]
[404662572,1770396638117,-107524.56599899,9.07e-05,2]
[404662573,1770396638129,-855.95,9.07e-05,2]
[404662574,1770396638140,-7276.71708627,9.07e-05,2]
[404662575,1770396638151,-712615.15767604,9.07e-05,2]
[404662576,1770396638161,-2500.0,9.07e-05,2]
[404662577,1770396638177,-439.68490721,9.07e-05,2]
[404662578,1770396638187,-4561.3346646,9.07e-05,2]
[404662579,1770396638197,-8429.19301902,9.07e-05,2]
[404662580,1770396638207,-500.0,9.097e-05,2]
[404662581,1770396638217,-500.0,9.145e-05,2]
[404662582,1770396638227,-209.50933815,9.145e-05,2]
[404662583,1770396638237,-500.0,9.145e-05,2]
[404662584,1770396638249,-500.0,9.145e-05,2]
[404662585,1770396638259,-500.0,9.145e-05,2]
[404662587,1770396638269,-500.0,9.145e-05,2]
[404662589,1770396638279,-500.0,9.145e-05,2]
[404662591,1770396638288,-500.0,9.145e-05,2]
[404662593,1770396638299,-500.0,9.145e-05,2]
[404662595,1770396638320,-500.0,9.145e-05,2]
[404662597,1770396638343,-500.0,9.145e-05,2]
[404662599,1770396638361,-500.0,9.145e-05,2]
[404662601,1770396638372,-500.0,9.145e-05,2]
[404662603,1770396638383,-500.0,9.145e-05,2]
[404662604,1770396638395,-422.59419613,9.145e-05,2]
[404662605,1770396638405,-342496.6150632,9.146e-05,2]
[404662606,1770396638416,-1123.0,9.151e-05,2]
[404662607,1770396638429,-329.40616332,9.152e-05,2]
[404662608,1770396638439,-330.61356557,9.169e-05,2]
[404662609,1770396638448,-1154.41270684,9.169e-05,2]
[404662610,1770396638457,-1809.89957862,9.169e-05,2]